Cogmind - Beta 16.1 *** ADVENTURER MODE // 2026.02.27 @ 17:19:29 Player: mrjoebobfred Result: Self-destructed Performance ------------- Evolutions (2) 1000 Regions Visited (5) 1000 Robots Destroyed (30) 150 Value Destroyed (698) 698 Prototype IDs (28) 560 Alien Tech Used (0) 0 Bonus (300) 300 TOTAL SCORE: 3708 Bonus ------- Aligned with FarCom 300 Cogmind --------- Core Integrity 500/550 Matter 149/300 Energy 100/100 System Corruption 0% Temperature Warm (155) Movement Treading (160) Location -8/Materials Parts ------- > --- POWER (1) -------- (None) > --- PROPULSION (4) --- Light Treads Light Treads > --- UTILITY (4) ------ Improved Heat Sink Large Storage Unit Medium Armor Plating > --- WEAPON (2) ------- Heavy Particle Cannon Rocket Launcher > --- INVENTORY (15) --- Terrain Scan Processor Seismic Detector Modified TNC Improved Propulsion Shielding Medium Armor Plating Medium Armor Plating Medium Armor Plating Hacking Suite Bomb Drone Bay Assault Rifle Assault Rifle Assault Rifle Peak State ------------ > --- POWER ------------ Ion Engine > --- PROPULSION ------- Light Treads Light Treads > --- UTILITY ---------- Improved Heat Sink Large Storage Unit Improved Terrain Scanner Medium Armor Plating > --- WEAPON ----------- Heavy Particle Cannon Rocket Launcher > --- INVENTORY -------- Terrain Scan Processor Seismic Detector Modified TNC Improved Propulsion Shielding Medium Armor Plating Medium Armor Plating Medium Armor Plating Hacking Suite Bomb Drone Bay Assault Rifle Assault Rifle Assault Rifle [Rating: 20] Favorites ----------- Power Ion Engine Engine Ion Engine Propulsion Light Treads Treads Light Treads Utility Improved Terrain Scanner Device Improved Terrain Scanner Storage Large Storage Unit Protection Medium Armor Plating Weapon Assault Rifle Energy Cannon Heavy Particle Cannon Ballistic Gun Assault Rifle Launcher Rocket Launcher Build | -11 -10 -10 -10 -9 -8 ------- Run | Yrd Mat Min Exi Min Mat Slots Evolved 4 | . . . . . 4 Power . | . . . . . . Propulsion 2 | . . . . . 2 Utility 2 | . . . . . 2 Weapon . | . . . . . . Parts Attached 17 | 7 3 . . 2 5 Power 1 | 1 . . . . . Engine 1 | 1 . . . . . Core . | . . . . . . Reactor . | . . . . . . Propulsion 4 | 2 . . . 2 . Treads 4 | 2 . . . 2 . Leg . | . . . . . . Wheel . | . . . . . . Hover . | . . . . . . Flight . | . . . . . . Utility 6 | 2 1 . . . 3 Device 3 | 1 . . . . 2 Storage 2 | 1 1 . . . . Processor . | . . . . . . Hackware . | . . . . . . Protection 1 | . . . . . 1 Artifact . | . . . . . . Weapon 6 | 2 2 . . . 2 Energy Gun . | . . . . . . Energy Cannon 1 | . . . . . 1 Ballistic Gun 4 | 2 2 . . . . Ballistic Cannon . | . . . . . . Launcher 1 | . . . . . 1 Special Weapon . | . . . . . . Impact Weapon . | . . . . . . Slashing Weapon . | . . . . . . Piercing Weapon . | . . . . . . Special Melee Weapon . | . . . . . . Unidentified Prototypes . | . . . . . . Parts Lost 3 | . . . . 1 2 Power 1 | . . . . . 1 Propulsion 1 | . . . . 1 . Utility 1 | . . . . . 1 Weapon . | . . . . . . Highest Loss Streak 2 | . . . . 1 2 To Critical Strikes . | . . . . . . Average Backups 9 | . 3 11 13 14 11 Power . | . . . . . . Propulsion 1 | . 1 2 2 1 . Utility 6 | . 1 6 8 9 8 Weapon 2 | . . 2 3 3 3 Tool/Special . | . . . . . . Unused Backups 12 | . . . 1 2 9 Power . | . . . . . . Propulsion 1 | . . . . 1 . Utility 9 | . . . 1 . 8 Weapon 2 | . . . . 1 1 Tool/Special . | . . . . . . Average Slot Usage (%) 98 | . 100 100 100 100 80 Engine 13 | . 14 14 14 14 9 Treads 27 | . 28 28 28 28 18 Device 14 | . 14 14 14 14 17 Storage 13 | . 14 14 14 14 9 Ballistic Gun 27 | . 28 28 28 28 16 Peak Build Rating 20 | 9 10 11 11 13 20 Average Rating 11 | 6 9 10 11 12 16 On Entrance 9 | . 9 10 11 11 13 Avg Prop Armor Cover (%) . | . . . . . . Naked Turns . | . . . . . . Heaviest Build 38 | 13 30 30 30 30 38 Greatest Support 40 | 40 40 40 40 40 40 Greatest Overweight (x) . | . . . . . . Average Overweight (x) . | . . . . . . Largest Inventory Capacity 15 | 8 15 15 15 15 15 Average Capacity 14 | 7 14 15 15 15 15 Most Carried 15 | . 9 13 14 15 13 Average Carried 10 | . 3 11 13 14 12 Final Capacity 15 | 8 15 15 15 15 15 Final Carried 14 | . 9 13 13 14 13 Class Distribution -------------------- 67% | Mutant 32% | Skirmisher Dominant Class ---------------- Mutant | -10/Materials Mutant | -10/Mines Mutant | -10/Exiles Skirmisher | -9/Mines Skirmisher | -8/Materials Resources | -11 -10 -10 -10 -9 -8 ----------- Run | Yrd Mat Min Exi Min Mat Matter Collected 648 | 292 125 137 . 69 25 Remotely . | . . . . . . Salvage Created 927 | 117 391 88 . 116 215 Parts 56 | 6 28 6 . 4 12 Haulers Intercepted 2 | . 2 . . . . Recyclers Shooed 1 | . . . . . 1 Parts Field Recycled . | . . . . . . Retrieved Matter . | . . . . . . Parts Self-Destructed . | . . . . . . Prevented . | . . . . . . Parts Restored . | . . . . . . Kills | -11 -10 -10 -10 -9 -8 ------- Run | Yrd Mat Min Exi Min Mat Combat Hostiles Destroyed 21 | . 12 2 . 3 4 Guns 18 | . 12 2 . 3 1 Cannons 2 | . . . . . 2 AOE 1 | . . . . . 1 Classes Destroyed 9 | 2 4 . . 1 2 Worker 1 | . . . . . 1 Tunneler 2 | 2 . . . . . Hauler 2 | . 2 . . . . Recycler 1 | 1 . . . . . Operator 1 | . . . . . 1 Watcher 2 | . 1 . . . 1 Swarmer 9 | . 9 . . . . Grunt 11 | . 3 2 . 2 4 Demolisher 1 | . . . . 1 . Best Kill Streak 5 | 3 5 2 . 3 5 Combat Bots Only 5 | . 5 2 . 3 4 Max Kills in Single Turn 2 | 1 2 1 . 1 2 Gunslinging 1 | . 1 . . . . Exploded 1 | . . . . . 1 Melee . | . . . . . . Uniques/NPCs Destroyed . | . . . . . . Combat | -11 -10 -10 -10 -9 -8 -------- Run | Yrd Mat Min Exi Min Mat Hostile Shots Fired 126 | . 55 9 6 12 44 Missed 35 | . 14 1 3 4 13 Hits 91 | . 41 8 3 8 31 Projectile 91 | . 41 8 3 8 31 AOE 3 | . . . . 3 . Critical Strikes 2 | . . . . . 2 Damage Taken 947 | . 273 92 34 173 375 Core 117 | . 28 . . 39 50 Absorbed by Shields . | . . . . . . Ignored by Resistances 278 | . 88 27 9 46 108 Core Remaining (%) 86 | 100 . . . 73 . Volleys Fired 88 | 11 34 6 1 8 28 Largest 2 | 2 2 2 2 2 2 Hottest 75 | 40 40 40 40 40 75 Shots Fired 167 | 22 68 12 2 16 47 Gun 158 | 22 68 12 2 16 38 Cannon 7 | . . . . . 7 Launcher 2 | . . . . . 2 Special . | . . . . . . Kinetic 158 | 22 68 12 2 16 38 Thermal 7 | . . . . . 7 Explosive 2 | . . . . . 2 Electromagnetic . | . . . . . . Robot Hit Streak 25 | 8 25 23 24 15 23 Robot Miss Streak 3 | 1 2 . 1 . 3 Penetration Max . | . . . . . . Secondary Targets 5 | . 3 1 . 1 . Max Gunslinging Chain 1 | . 1 1 . 1 . Shots Hit Robots 136 | 17 58 11 1 15 34 Core Hits 61 | 6 21 4 1 8 21 Critical Kills . | . . . . . . Critical Parts Destroyed 1 | . 1 . . . . Critical Strikes 1 | . 1 . . . . Destroy 1 | . 1 . . . . Melee Attacks . | . . . . . . Impact . | . . . . . . Slashing . | . . . . . . Piercing . | . . . . . . Sneak Attacks . | . . . . . . Combat Hostiles . | . . . . . . Follow-up Attacks . | . . . . . . Damage Inflicted 2125 | 145 760 138 15 181 886 Guns 1562 | 145 760 138 15 181 323 Cannons 150 | . . . . . 150 Explosions 413 | . . . . . 413 Melee . | . . . . . . Ramming . | . . . . . . Kinetic 1562 | 145 760 138 15 181 323 Thermal 150 | . . . . . 150 Explosive 413 | . . . . . 413 Electromagnetic . | . . . . . . Impact . | . . . . . . Slashing . | . . . . . . Piercing . | . . . . . . Highest Corruption . | . . . . . . Average Corruption . | . . . . . . Corruption Purged . | . . . . . . Corruption Blocked . | . . . . . . Overload Shots . | . . . . . . Overflow Damage . | . . . . . . Projectiles . | . . . . . . Explosions . | . . . . . . Melee . | . . . . . . Knockbacks . | . . . . . . Impact . | . . . . . . Kinetic . | . . . . . . Secondary . | . . . . . . Self-Inflicted Damage . | . . . . . . Shots . | . . . . . . Rammed . | . . . . . . Targets Rammed . | . . . . . . Kicked . | . . . . . . Crushed . | . . . . . . Highest Temperature 119 | . 2 8 . 2 119 Average Temperature 34 | . 2 2 . 2 59 Received Heat Transfer 483 | . 57 66 . 45 315 Siege Activations . | . . . . . . Martial Activations . | . . . . . . Shielding Activations . | . . . . . . Robots Disrupted . | . . . . . . Combat Hostiles . | . . . . . . Robots Corrupted . | . . . . . . Combat Hostiles . | . . . . . . Parts Fried . | . . . . . . Impact Corruptions . | . . . . . . Robots Melted . | . . . . . . Combat Hostiles . | . . . . . . Parts Melted . | . . . . . . Heat Transferred 222 | . . . . . 222 Parts Sabotaged . | . . . . . . Parts Stolen . | . . . . . . Parts Stripped . | . . . . . . Power Chain Reactions . | . . . . . . Alert | -11 -10 -10 -10 -9 -8 ------- Run | Yrd Mat Min Exi Min Mat Maximum Alert Level . | . . . . . . Low Security (%) 100 | 100 100 100 . 100 100 Level 1 . | . . . . . . Level 2 . | . . . . . . Level 3 . | . . . . . . Level 4 . | . . . . . . Level 5 . | . . . . . . High Security . | . . . . . . Max Security . | . . . . . . Peak Influence 133 | 10 133 66 . 80 94 Initial 16 | . . 16 . . . Average 18 | . 57 4 . 7 8 Influence Increases 646 | 15 372 50 . 80 129 Destroy 0b10 Robot/C 420 | . 240 40 . 60 80 Destroy 0b10 Robot/NC 45 | 15 15 . . . 15 Destroy Leader 88 | . 46 10 . 20 12 Successful Hack 46 | . 41 . . . 5 Destroy Structure 2 | . . . . . 2 Lose Combat Pursuer 45 | . 30 . . . 15 Influence Decreases 572 | 15 322 100 . 80 55 Entered New Map 34 | . . 34 . . . Time Decay 518 | 15 322 66 . 80 35 Lost Part 20 | . . . . . 20 Squads Dispatched 3 | . . 1 . . 2 Investigation 1 | . . 1 . . . Extermination . | . . . . . . Reinforcement 2 | . . . . . 2 Assault . | . . . . . . Garrison . | . . . . . . Intercept . | . . . . . . Searches Triggered . | . . . . . . Construction Impeded . | . . . . . . Haulers Reinforced . | . . . . . . Active Scanning Responses . | . . . . . . Cargo Convoy Interrupts . | . . . . . . Stealth | -11 -10 -10 -10 -9 -8 --------- Run | Yrd Mat Min Exi Min Mat Distress Signals 3 | . 1 . . . 2 Communications Jammed . | . . . . . . Distress Signals . | . . . . . . Times Spotted 37 | . 19 2 2 3 11 Peak Tracking Total 8 | . 3 1 3 3 8 Tactical Retreats 2 | . 1 . . . 1 Traps | -11 -10 -10 -10 -9 -8 ------- Run | Yrd Mat Min Exi Min Mat Traps Triggered . | . . . . . . Indirectly . | . . . . . . Trap Hack Attempts . | . . . . . . Triggered . | . . . . . . Disarmed . | . . . . . . Reprogrammed . | . . . . . . Reused . | . . . . . . Traps Extracted . | . . . . . . Installed . | . . . . . . Triggered . | . . . . . . Machines | -11 -10 -10 -10 -9 -8 ---------- Run | Yrd Mat Min Exi Min Mat Machines Disabled 1 | . . . 1 . . Max in Single Turn 1 | . . . 1 . . Machines Repaired . | . . . . . . Machines Dismantled . | . . . . . . Machines Sabotaged . | . . . . . . Overloaded Fab Kills . | . . . . . . Hacking | -11 -10 -10 -10 -9 -8 --------- Run | Yrd Mat Min Exi Min Mat Machines Accessed 12 | . 8 1 1 1 1 Terminals 8 | . 7 . . . 1 Fabricators . | . . . . . . Repair Stations . | . . . . . . Recycling Units 1 | . 1 . . . . Scanalyzers . | . . . . . . Garrison Access . | . . . . . . Total Hacks 40 | . 32 1 1 1 5 Successful 27 | . 20 1 1 1 4 Failed 12 | . 11 . . . 1 Catastrophic 2 | . 1 . . . 1 Database Lockouts 1 | . 1 . . . . Manual 26 | . 22 . 1 . 3 Terminals 33 | . 28 . . . 5 Fabricators . | . . . . . . Repair Stations . | . . . . . . Recycling Units 4 | . 4 . . . . Scanalyzers . | . . . . . . Garrison Access . | . . . . . . Terminal Hacks 14 | . 9 1 1 1 2 Robot Analysis 2 | . 2 . . . . Prototype ID Bank 3 | . 3 . . . . Open Door 2 | . . 1 . 1 . Level Access Points 1 | . 1 . . . . Locate Traps 1 | . 1 . . . . Recall Reinforcements 1 | . . . . . 1 Zone Layout 3 | . 2 . . . 1 Proto ID Catalog 1 | . . . 1 . . Fabricator Hacks . | . . . . . . Repair Station Hacks . | . . . . . . Recycling Unit Hacks 1 | . 1 . . . . Retrieve Components 1 | . 1 . . . . Scanalyzer . | . . . . . . Garrison Access Hacks . | . . . . . . Unauthorized Hacks 12 | . 10 . . . 2 Terminals 9 | . 7 . . . 2 Botnet 3 | . 2 . . . 1 Skim 6 | . 5 . . . 1 Fabricators . | . . . . . . Repair Stations . | . . . . . . Recycling Units 3 | . 3 . . . . Reject 1 | . 1 . . . . Recyclers 1 | . 1 . . . . Mask 1 | . 1 . . . . Scanalyzers . | . . . . . . Garrison Access . | . . . . . . Data Cores Recovered . | . . . . . . Used . | . . . . . . Hacking Detections 8 | . 7 . . . 1 Full Trace Events . | . . . . . . Feedback Events . | . . . . . . Feedback Blocked . | . . . . . . Robot Schematics Acquired . | . . . . . . Robots Built . | . . . . . . Authchips . | . . . . . . Time . | . . . . . . Total Robot Build Rating . | . . . . . . Part Schematics Acquired . | . . . . . . Parts Built . | . . . . . . Authchips . | . . . . . . Time . | . . . . . . Total Part Build Rating . | . . . . . . Part Studies Acquired . | . . . . . . Parts Repaired . | . . . . . . Time . | . . . . . . Parts Recycled . | . . . . . . Recycled Matter . | . . . . . . Retrieved Matter . | . . . . . . Retrieved Components 9 | . 9 . . . . Parts Scanalyzed . | . . . . . . Part Schematics Acquired . | . . . . . . Parts Damaged . | . . . . . . Bothacking | -11 -10 -10 -10 -9 -8 ------------ Run | Yrd Mat Min Exi Min Mat Used RIF Installer . | . . . . . . Robots Hacked . | . . . . . . Non-combat . | . . . . . . Combat . | . . . . . . Robot Hacks Applied . | . . . . . . Relay Couplers Released . | . . . . . . Fabnet Peak Effective % . | . . . . . . Robots Rewired . | . . . . . . Allies Hacked . | . . . . . . Hacks Repelled . | . . . . . . Allies | -11 -10 -10 -10 -9 -8 -------- Run | Yrd Mat Min Exi Min Mat Total Allies 4 | . . 4 . . . Largest Group 4 | . . 4 3 . . Highest-Rated Group 71 | . . 71 40 . . Highest-Rated Ally 31 | . . 31 16 . . Total Orders 3 | . . . 3 . . STAY 3 | . . . 3 . . Ally Attacks 2 | . . . 2 . . Total Damage 15 | . . . 15 . . Kills . | . . . . . . Allies Corrupted . | . . . . . . Allies Melted . | . . . . . . Intel | -11 -10 -10 -10 -9 -8 ------- Run | Yrd Mat Min Exi Min Mat Active Infowar (turns) 3334 | 46 723 937 502 864 262 Terrain 3334 | 46 723 937 502 864 262 Seismic 256 | . . . . . 256 Robot Analysis Total 2 | . 2 . . . . Derelict Logs Recovered 3 | . . 2 . 1 . Drone Launches . | . . . . . . Drone Recoveries . | . . . . . . Exploration | -11 -10 -10 -10 -9 -8 ------------- Run | Yrd Mat Min Exi Min Mat Turns Passed 3461 | 164 723 937 502 864 271 Spaces Moved 1821 | 74 377 530 285 492 63 Core 3 | 3 . . . . . Treads 1818 | 71 377 530 285 492 63 Legs . | . . . . . . Wheels . | . . . . . . Hover . | . . . . . . Flight . | . . . . . . Fastest Speed 50 | 50 160 160 160 160 160 Average Speed 159 | 155 160 160 160 160 160 Slowest Speed 160 | 160 160 160 160 160 160 Overloaded Moves . | . . . . . . Propulsion Burnouts . | . . . . . . Robots Hopped . | . . . . . . Potential Cave-ins . | . . . . . . Cave-ins Triggered . | . . . . . . Exploration Rate (%) 57 | 4 79 97 64 93 10 Regions Visited 5 Branch Regions 3 Pre-discovered Areas 3 | . . 2 . 1 . Known Exits Taken 1 | . 1 . . . . Unknown Exits Taken 4 | 1 . 1 1 1 . Scrap Searched 5 | . . 1 . 4 . Spaces Dug . | . . . . . . Terrain Destroyed 2 | . . . . . 2 Melee . | . . . . . . Projectile 1 | . . . . . 1 AOE 1 | . . . . . 1 Terrain Rammed . | . . . . . . Walls Destroyed . | . . . . . . Machines Disabled . | . . . . . . Actions | -11 -10 -10 -10 -9 -8 --------- Run | Yrd Mat Min Exi Min Mat Total 2207 | 102 430 607 330 554 184 Wait 260 | 11 5 68 43 46 87 Move 1816 | 73 376 529 284 491 63 Hop . | . . . . . . Pick Up 19 | . 9 4 1 4 1 Fast Attach 7 | 7 . . . . . Attach 3 | . . . . 1 2 Detach . | . . . . . . Swap 7 | . 3 . . 1 3 Drop 7 | . 3 . 1 3 . Fire 88 | 11 34 6 1 8 28 Melee . | . . . . . . Ram . | . . . . . . Kick . | . . . . . . Crush . | . . . . . . Escape Stasis . | . . . . . . Rewire . | . . . . . . Trap . | . . . . . . Miscellaneous . | . . . . . . Route ------- -11/Scrapyard -10/Materials (discovered 5 exits: *Mat x3 / *Min x2) -10/Mines (discovered 3 exits: *Mat x2 / *Exi) -10/Exiles (discovered 2 exits: *Min x2) -9/Mines (discovered 2 exits: *Mat x2) -8/Materials (discovered 1 exit: Fac) History --------- Turn | Location | Event 6 | -11/Scrapyard | Discovered new exit (range 14) 165 | -11/Scrapyard | Entered Materials 311 | -10/Materials | Build established: Mutant 366 | -10/Materials | Discovered new exit (range 4) 393 | -10/Materials | Identified exit to Materials 467 | -10/Materials | Learned Storage emergency access door positions 533 | -10/Materials | Loaded intel: 2 recycling unit locations 589 | -10/Materials | Identified exit to Mines 635 | -10/Materials | Loaded intel: 14 trap records 669 | -10/Materials | Learned location of 1 exit from Recycling 693 | -10/Materials | Learned Storage trap positions 709 | -10/Materials | Learned Materials trap positions 775 | -10/Materials | Learned Recycling recycling unit intel 831 | -10/Materials | Central database locked down 882 | -10/Materials | Learned Storage trap positions 888 | -10/Materials | Entered Mines 931 | -10/Mines | Met a Derelict bent on vengeance 1120 | -10/Mines | Met a Derelict shopkeep closing up shop 1164 | -10/Mines | Discovered exit to Materials (range 8) 1337 | -10/Mines | Discovered exit to Materials (range 4) 1366 | -10/Mines | YI-UF0 nonchalantly dropped a Grenade Launcher on the ground 1381 | -10/Mines | Learned location of Zion (-7) 1514 | -10/Mines | Received a Mining Laser from a helpful Derelict 1688 | -10/Mines | Deemed a non-threat by the Exiles lab entrance 1688 | -10/Mines | Discovered new exit (range 5) 1745 | -10/Mines | Assisted by bots powering up and referring to "LRC-V3" 1825 | -10/Mines | Entered Exiles 1825 | -10/Exiles | Accompanied by 3 allies 1851 | -10/Exiles | Discovered new exit (range 14) 1893 | -10/Exiles | Met 8R-AWN 1918 | -10/Exiles | Met EX-HEX 1979 | -10/Exiles | Met EX-BIN 2005 | -10/Exiles | Aligned with FarCom system 2006 | -10/Exiles | Given EX-Vault access code 2045 | -10/Exiles | Opened EX-Vault 2054 | -10/Exiles | Found Modified TNC 2086 | -10/Exiles | Warned to stay clear of 0b10 Research branches 2111 | -10/Exiles | Exiles lab attacked by MAIN.C 2313 | -10/Exiles | Discovered new exit (range 11) 2327 | -10/Exiles | Left Exiles lab with Modified TNC 2327 | -10/Exiles | Entered Mines 2332 | -9/Mines | Assembled infested the area 2337 | -9/Mines | Assisted by a Guerilla fighting off Assembled 2468 | -9/Mines | Discovered new exit (range 6) 2627 | -9/Mines | Build established: Skirmisher 2765 | -9/Mines | Found the Drone Emporium 2775 | -9/Mines | Found Prototype Device 2825 | -9/Mines | Discovered new exit (range 9) 2836 | -9/Mines | Learned location of Storage (-7) 3191 | -9/Mines | Entered Materials 3191 | -8/Materials | Evolved 4 slots: Propulsion x2, Utility x2 3192 | -8/Materials | Identified exit to Factory 3193 | -8/Materials | Loaded intel: 18 trap records 3462 | -8/Materials | Self-destructed Last Messages --------------- Testing... Terminal linked with 0 systems. Please expand to 4 more systems! 03424_ G-47 Trooper destroyed. 03428_ K-01 Serf collects debris. 03433_ Destroyed Lgt. Nuclear Core. 03436_ K-01 Serf collects debris. 03441_ R-06 Scavenger collects Imp. Heat Sink. 03443_ G-47 Trooper destroyed. 03443_ Critical hit (Burn: +37). 03446_ G-47 Trooper destroyed. 03447_ K-01 Serf collects debris. 03452_ G-47 Trooper destroyed. 03453_ Imp. Terrain Scanner destroyed. 03454_ K-01 Serf collects debris. 03456_ R-06 Scavenger collects Aluminum Leg. 03457_ K-01 Serf collects debris. 03462_ R-06 Scavenger collects Particle Gun. 03462_ Critical hit (Burn: +37). 03462_ Ion Engine destroyed. Map ----- +----------------------------------------------------+ | ?????????????????????????????????????????????????? | | ?????????????????????????????????????????????????? | | ?????????????????????????????????????????????????? | | ?????????????????????????????????????????????????? | | ?????????????????????????????????????????????????? | | ?????????????????????????????????????????????????? | | ?????????????????????????????????????????????????? | | ?????????????????????????????????????????????????? | | ?????????????????????????????????????????????????? | | ?????????????????????????????????????????????????? | | ????????????????????????? ???????????????????????? | | ??????????????????????????????#??????????????????? | | ?????????????????????????????????????????????????? | | ?????????????????????????#######;##??????????????? | | ????????????????????????? ????????????? | | ??????########## #????# ????????????? | | ???????????????# #????# T ???????????? | | ???????????????# #????# ???????????? | | ???????????????# #????# %* ??????????? | | ???????????????# #??### =% ??????????? | | ???????????????# ###??#"" %=g g ??????????? | | ???????????????# #???##"T [ gr k ?????????? | | ???????????????# #????#"" o %* ?????????? | | ??????###??????# #????### ????????# | | ?????? ##????#?# #??????# #??????????? | | ?????? #??????# ##?????#@ !] #? ????????? | | ?????? #??????# #??????# ]! #??????????? | | ?????? ##??????# #???#?## ] #? ????????? | | ?????? #?????### ######## #??? ?????? | | ?????? #?????# ^ """ #??????????? | | ??????######## ^ "T" g +??? ? ???? | | ?????? ## g ] #????????# ? | | ?????? ##^ #???? ?????? | | ?????? # g """"" #??? ??????? | | ?????? ## ^^"""^ """"""""" #????####### | | ??????" """ ## """ """ """w ####### | | ??????" """ ## """ % | | ??????" """ ## " | | ?????? ## | | ??????######## ##""T""#######+### ###+### | | ??????######## ##"""""# # ## ###### | | ?????? # ######## """"""" # ## #????? | | ?????? + ######## """"""" # ## ##???# | | ?????? # + """"""" ###### #??? ? | | ??????######## ######## """"""" ###??# #??"?? | | ?????? T / #??????# """"""" # ? # #????? | | ????????????????????#?#?# ? ????? #????# #??"?? | | ???????????????????????????????? %#????# #????? | | ???????? ??????????????????????#??#????# #????? | | ???????????"?????????#??????##????????#######??"?? | +----------------------------------------------------+ Best States ------------- Heat Dissipation 45 Energy Generation 10 Energy Capacity 250 Matter Stores 300 Matter Capacity 300 Sight Range 16 Terrain Scan Range 16 Terrain Scan Density 10 Armor Coverage 225 Resistance: KI 20 Resistance: TH 20 Resistance: EX 20 Resistance: EM 20 Resistance: I 20 Resistance: S 20 Resistance: P 20 Evasion (%) 40 Recoil Reduction 2 Offensive Hacking 10 Item Schematics ----------------- None Robot Schematics ------------------ None Fabricated ------------ Nothing Repaired ---------- Nothing Studied --------- None Alien Tech Used ----------------- None Achievements -------------- Sixth Sense Challenges ------------ None Game ------ Seed BombardmentTractorRigger Manual? 0 Play Time 00:29:17 Cumulative 623.6 hours Start 2026.02.25 @ 16:29:57 End 2026.02.27 @ 17:19:29 Sessions 3 Manual Loads 0 Difficulty Adventurer Special Mode None Game No. 113 Rogue 6 Adventurer 8 Explorer 99 Win Type - Total 42 Types 15/10/2/5/2/1/1/4/2/0 Lore% 89 Gallery% 80 Achievement% 49 Wizard Run 0 Options --------- Layout 1 ASCII 0 Keyboard 0 Movement Mouse Keybinds 0 Fullscreen 1 Font 32/SmallcapsGlow Map View 50x40 Zoom Use 0% Tactical HUD 1 Map Filters NONE Filters NONE Steam 1 RUN: 395f0f53-798a-4ee6-b187-a62aa354dbf8